bitfinex/quotes_BTCUSD_20251226
["timestamp","ask_amount","ask_price","bid_price","bid_amount"]
[1766718109825,0.00055,89217.0,89205.0,0.01121013]
[1766718110114,0.01120824,89220.0,89170.0,0.58395242]
[1766718110115,0.01344199,89213.0,89195.0,0.01128]
[1766718110712,0.01120988,89207.0,89195.0,0.01128]
[1766718110947,0.01128,89206.0,89197.0,0.01121113]
[1766718111149,0.01128,89206.0,89197.0,0.00010765]
[1766718112123,0.0112085,89218.0,89203.0,0.01121038]
[1766718112323,0.01128,89209.0,89200.0,0.01121076]
[1766718112545,0.01128,89209.0,89198.0,0.01121101]
[1766718112758,0.01128,89209.0,89200.0,0.01121076]
[1766718112958,0.01128,89209.0,89199.0,0.01121088]
[1766718113322,0.01344199,89213.0,89202.0,0.01121051]
[1766718113585,0.01128,89214.0,89208.0,0.01120975]
[1766718113719,0.01128,89213.0,89200.0,0.01121076]
[1766718113921,0.01128,89213.0,89201.0,0.01121063]
[1766718114122,0.01128,89213.0,89202.0,0.01121051]
[1766718114453,0.01128,89213.0,89206.0,0.01121]
[1766718114651,0.01128,89213.0,89205.0,0.01121013]
[1766718114861,0.01128,89213.0,89208.0,0.01120975]
[1766718115228,0.01128,89213.0,89209.0,0.01120963]
[1766718115426,0.01128,89213.0,89206.0,0.01121]
[1766718115941,0.01128,89213.0,89205.0,0.01121013]
[1766718116116,0.01128,89213.0,89207.0,0.01120988]
[1766718116523,0.01128,89213.0,89205.0,0.01121013]
[1766718116727,0.01128,89213.0,89204.0,0.01121025]
[1766718116870,0.01128,89213.0,89205.0,0.01121013]
[1766718117073,0.01128,89213.0,89206.0,0.01121]
[1766718117487,0.01128,89213.0,89208.0,0.01120975]
[1766718117748,0.001099,89208.0,89198.0,0.01121101]
[1766718117923,0.001099,89208.0,89199.0,0.01121088]
[1766718118121,0.00094237,89208.0,89201.0,0.01121063]
[1766718118338,0.01344199,89211.0,89201.0,0.01121063]
[1766718118502,0.01344199,89211.0,89198.0,0.01121101]
[1766718118921,0.01344199,89211.0,89200.0,0.01121076]
[1766718119542,0.01344199,89211.0,89201.0,0.01121063]
[1766718119944,0.01344199,89211.0,89203.0,0.01121038]
[1766718120151,0.01344199,89211.0,89202.0,0.01128]
[1766718121249,0.01128,89210.0,89202.0,0.01128]
[1766718121451,0.011123,89210.0,89203.0,0.01121038]
[1766718121969,0.011123,89210.0,89202.0,0.01128]
[1766718123114,0.011123,89210.0,89204.0,0.01121025]
[1766718123233,0.011123,89210.0,89202.0,0.01128]
[1766718123434,0.011123,89210.0,89204.0,0.01121025]
[1766718123886,0.011123,89210.0,89207.0,0.01120988]
[1766718124044,0.011123,89210.0,89204.0,0.01121025]
[1766718124246,0.011123,89210.0,89207.0,0.01120988]
[1766718124488,0.011123,89210.0,89206.0,0.01121]
[1766718124698,0.011123,89210.0,89207.0,0.01120988]
[1766718125538,0.011123,89210.0,89207.0,0.06725868]
[1766718125946,0.01128,89217.0,89211.0,0.01120938]
[1766718126162,0.01128,89217.0,89209.0,0.01120963]
[1766718126366,0.01128,89217.0,89210.0,0.0112095]
[1766718126858,0.01128,89217.0,89209.0,0.06725737]
[1766718126859,0.01128,89217.0,89209.0,0.01120963]
[1766718127039,0.01128,89217.0,89210.0,0.0112095]
[1766718127597,0.01344199,89216.0,89207.0,0.01120988]
[1766718127778,0.01344199,89216.0,89209.0,0.01120963]
[1766718129005,0.001099,89209.0,89203.0,0.01121038]
[1766718129181,0.001099,89209.0,89197.0,0.01131878]
[1766718129383,0.01120925,89212.0,89197.0,0.00010765]
[1766718129632,0.01120938,89211.0,89197.0,0.00010765]
[1766718129815,0.0112095,89210.0,89197.0,0.01131878]
[1766718130056,0.0112095,89210.0,89197.0,0.00010765]
[1766718130330,0.01165248,89197.0,89168.0,0.1461]
[1766718130483,0.01121113,89197.0,89182.0,0.01121302]
[1766718130682,0.01121113,89197.0,89183.0,0.01121289]
[1766718130907,0.06726351,89202.0,89182.0,0.02260065]
[1766718130908,0.01120938,89211.0,89193.0,0.01121164]
[1766718131174,0.39843218,89230.0,89206.0,0.01121]
[1766718131175,0.01128,89216.0,89206.0,0.01121]
[1766718131470,0.000442,89206.0,89203.0,0.06726221]
[1766718131673,0.01128,89216.0,89208.0,0.01120975]
[1766718131986,0.01128,89216.0,89207.0,0.01120988]
[1766718132374,0.01128,89216.0,89202.0,0.01128]
[1766718132375,0.01128,89216.0,89215.0,0.000549]
[1766718132555,0.01120762,89225.0,89215.0,0.000549]
[1766718132751,0.01120762,89225.0,89209.0,0.01120963]
[1766718132752,0.02248774,89224.0,89209.0,0.01120963]
[1766718133076,0.01128,89224.0,89214.0,0.011209]
[1766718133300,0.01128,89224.0,89213.0,0.01120912]
[1766718133657,0.01138753,89224.0,89213.0,0.01120912]
[1766718134039,0.01138753,89224.0,89214.0,0.011209]
[1766718134238,0.01138753,89224.0,89216.0,0.01120875]
[1766718134440,0.01138753,89224.0,89216.0,0.84281]
[1766718135142,0.01138753,89224.0,89218.0,0.06725058]
[1766718135339,0.01138753,89224.0,89220.0,0.01120824]
[1766718135583,0.01128,89228.0,89223.0,0.01120787]
[1766718135743,0.01128,89228.0,89220.0,0.06724902]
[1766718135744,0.01128,89228.0,89224.0,0.000549]
[1766718136095,0.84247,89235.0,89218.0,0.91006056]
[1766718136096,0.01128,89235.0,89223.0,0.01120787]
[1766718136298,0.01128,89235.0,89217.0,0.23545065]
[1766718136299,0.00055,89223.0,89217.0,0.01128]
[1766718136501,0.82825,89228.0,89217.0,0.01128]
[1766718137498,0.82825,89228.0,89217.0,0.02248862]
[1766718138082,0.82825,89228.0,89219.0,0.01120837]
[1766718138397,0.01344199,89231.0,89220.0,0.84281]
[1766718138563,0.01344199,89231.0,89220.0,0.85401824]
[1766718138763,0.01344199,89231.0,89220.0,0.84281]
[1766718139317,0.01344199,89231.0,89221.0,0.01120812]
[1766718139479,0.01344199,89231.0,89224.0,0.01120774]
[1766718139879,0.01344199,89231.0,89221.0,0.01120812]
[1766718140104,0.01344199,89231.0,89222.0,0.01120799]
[1766718140674,0.01344199,89231.0,89221.0,0.01120812]
[1766718140872,0.01344199,89231.0,89220.0,0.85401824]
[1766718141095,0.01344199,89231.0,89220.0,0.84281]
[1766718141675,0.80474699,89230.0,89217.0,0.01128]
[1766718141870,0.02464885,89231.0,89217.0,0.01128]
[1766718141871,0.80474724,89228.0,89217.0,0.01128]
[1766718142075,0.79354,89228.0,89217.0,0.01128]
[1766718142275,0.79354,89228.0,89217.0,0.02248862]
[1766718142485,0.79354,89228.0,89217.0,0.01128]
[1766718142680,0.79354,89228.0,89217.0,0.02248862]
[1766718143089,0.79354,89228.0,89217.0,0.01128]
[1766718144104,0.08068361,89231.0,89218.0,0.84281]
[1766718144507,0.02464885,89231.0,89218.0,0.84281]
[1766718144711,0.02464885,89231.0,89219.0,0.01120837]
[1766718144712,0.01344199,89231.0,89219.0,0.01120837]
[1766718144912,0.01344199,89231.0,89218.0,0.8540185]
[1766718145115,0.02464885,89231.0,89218.0,0.84281]
[1766718145321,0.02464885,89231.0,89212.0,0.22418357]
[1766718145322,0.40908,89216.0,89192.0,0.84281]
[1766718145538,0.01344199,89209.0,89199.0,0.01121088]
[1766718145742,0.01128,89215.0,89209.0,0.000549]
[1766718145978,0.01120799,89222.0,89209.0,0.843359]
[1766718145979,0.00964944,89222.0,89209.0,0.843359]
[1766718146097,0.00964944,89222.0,89208.0,0.01120975]
[1766718146098,0.00964944,89222.0,89212.0,0.84281]
[1766718146304,0.00964944,89222.0,89211.0,0.01120938]
[1766718146305,0.01120711,89229.0,89215.0,0.84281]
[1766718146550,0.01128,89228.0,89215.0,0.84281]
[1766718146720,0.01344199,89231.0,89217.0,0.85401862]
[1766718146917,0.01344199,89231.0,89218.0,0.84281]
[1766718146918,0.01128,89230.0,89218.0,0.84281]
[1766718147141,0.01128,89230.0,89221.0,0.01120812]
[1766718147405,0.01128,89237.0,89230.0,0.000549]
[1766718147605,0.01120598,89238.0,89230.0,0.000549]
[1766718147863,0.01120598,89238.0,89225.0,0.84281]
[1766718148465,0.02248586,89239.0,89225.0,0.85401762]
[1766718148628,0.01128,89239.0,89226.0,0.01120749]
[1766718148833,0.01120598,89238.0,89225.0,0.85401762]
[1766718149033,0.01120611,89237.0,89225.0,0.84281]
[1766718149218,0.01120598,89238.0,89225.0,0.85401762]
[1766718149418,0.02248586,89239.0,89225.0,0.84281]
[1766718149672,0.01120598,89238.0,89225.0,0.85401762]
[1766718150167,0.01128,89239.0,89226.0,0.01120749]
[1766718150346,0.01128,89239.0,89226.0,0.85401749]
[1766718150532,0.02248586,89239.0,89226.0,0.85401749]
[1766718150734,0.01128,89239.0,89227.0,0.01120736]
[1766718151134,0.01128,89239.0,89230.0,0.01120699]
[1766718151338,0.01128,89239.0,89229.0,0.01120711]
[1766718151339,0.010731,89239.0,89233.0,0.85401661]
[1766718151540,0.01128,89246.0,89234.0,0.01120649]
[1766718151741,0.01120473,89248.0,89235.0,0.84281]
[1766718151940,0.42059448,89250.0,89236.0,0.01120623]
[1766718152236,0.42059448,89250.0,89235.0,0.84281]
[1766718152237,0.01120473,89248.0,89235.0,0.84281]
[1766718152563,0.81884347,89250.0,89235.0,0.85401636]
[1766718152757,0.0112046,89249.0,89235.0,0.85401636]
[1766718153142,0.40939,89250.0,89236.0,0.05603078]
[1766718153349,0.01344199,89245.0,89235.0,0.91004761]
[1766718153611,0.01344199,89245.0,89239.0,0.01120586]
[1766718153782,0.01344199,89245.0,89241.0,0.01120561]
[1766718154599,0.01344199,89245.0,89240.0,0.01120573]
[1766718154795,0.01344199,89245.0,89241.0,0.01120561]
[1766718155315,0.01344199,89245.0,89242.0,0.01120548]
[1766718155723,0.01344199,89245.0,89240.0,0.01120573]
[1766718156019,0.01344199,89245.0,89235.0,0.84281]
[1766718156720,0.02464709,89245.0,89235.0,0.842261]
[1766718157033,0.02464709,89245.0,89235.0,0.01128]
[1766718157034,0.38610709,89245.0,89235.0,0.01128]
[1766718157324,0.38610709,89245.0,89228.0,0.84281]
[1766718157325,0.01120536,89243.0,89228.0,0.84281]
[1766718157478,0.01120536,89243.0,89220.0,0.39824899]
[1766718157479,0.00055,89228.0,89219.0,0.85401837]
[1766718157692,0.01344199,89231.0,89212.0,0.84281]
[1766718157693,0.01120774,89224.0,89212.0,0.84281]
[1766718157912,0.01120774,89224.0,89212.0,0.01138753]
[1766718157913,0.01344199,89217.0,89212.0,0.01138753]
[1766718158088,0.01344199,89217.0,89212.0,0.00010753]
[1766718158315,0.05605007,89206.0,89197.0,0.84281]
[1766718158645,0.05605007,89206.0,89199.0,0.01121088]
[1766718158646,0.00010755,89206.0,89199.0,0.01121088]
[1766718158846,0.01344199,89203.0,89199.0,0.01121088]
[1766718159037,0.01344199,89203.0,89200.0,0.01121076]
[1766718159038,0.01289299,89203.0,89200.0,0.01121076]
[1766718159236,0.00010755,89206.0,89200.0,0.01121076]
[1766718159395,0.36473875,89216.0,89203.0,0.01121038]
[1766718159598,0.42073723,89220.0,89200.0,0.06726407]
[1766718159599,0.01128,89220.0,89207.0,0.01120988]
[1766718159821,0.01120799,89222.0,89209.0,0.01120963]
[1766718160028,0.02248812,89221.0,89207.0,0.85401988]
[1766718160226,0.02248812,89221.0,89208.0,0.01120975]
[1766718160540,0.02248812,89221.0,89207.0,0.84281]
[1766718160682,0.01120824,89220.0,89207.0,0.84281]
[1766718160887,0.01128,89221.0,89208.0,0.01120975]
[1766718161369,0.39824899,89220.0,89208.0,0.01120975]
[1766718161569,0.02248812,89221.0,89208.0,0.01120975]
[1766718161773,0.39824899,89220.0,89208.0,0.01120975]
[1766718162560,0.40945723,89220.0,89207.0,0.85401988]
[1766718162774,0.01120837,89219.0,89207.0,0.84281]
[1766718162973,0.40945723,89220.0,89207.0,0.85401988]
[1766718163171,0.02248812,89221.0,89198.0,0.01121101]
[1766718163172,0.05604555,89214.0,89198.0,0.01121101]
[1766718163370,0.00055,89198.0,89192.0,0.01128]
[1766718163728,0.00055,89198.0,89194.0,0.01121151]
[1766718163891,0.01128,89206.0,89194.0,0.01121151]
[1766718163892,0.01128,89206.0,89198.0,0.01121101]
[1766718164073,0.01138759,89206.0,89200.0,0.01121076]
[1766718164406,0.00010759,89206.0,89200.0,0.06726406]
[1766718164583,0.00010759,89206.0,89201.0,0.01121063]
[1766718164785,0.00010759,89206.0,89202.0,0.01121051]
[1766718164982,0.00010759,89206.0,89201.0,0.01121063]
[1766718165188,0.00010759,89206.0,89202.0,0.01121051]
[1766718165508,0.00010759,89206.0,89202.0,0.06726271]
[1766718165713,0.30329,89215.0,89208.0,0.01120975]
[1766718165943,0.30329,89215.0,89203.0,0.01121038]
[1766718166091,0.000549,89208.0,89201.0,0.02249063]
[1766718166312,0.000549,89208.0,89201.0,0.01128]
[1766718166500,0.39824899,89211.0,89201.0,0.01128]
[1766718166698,0.05604254,89218.0,89203.0,0.01121038]
[1766718166919,0.05604254,89218.0,89201.0,0.01128]
[1766718166920,0.39824899,89213.0,89201.0,0.01128]
[1766718167120,0.01120762,89225.0,89205.0,0.05605035]
[1766718167325,0.01344199,89215.0,89206.0,0.01121]
[1766718167899,0.01344199,89215.0,89205.0,0.01121013]
[1766718168104,0.01344199,89215.0,89206.0,0.01121]
[1766718168300,0.01344199,89215.0,89205.0,0.01121013]
[1766718168521,0.01344199,89215.0,89207.0,0.01120988]
[1766718168929,0.01344199,89215.0,89201.0,0.02249063]
[1766718169097,0.01344199,89215.0,89203.0,0.01121038]
[1766718169294,0.01344199,89215.0,89205.0,0.01121013]
[1766718169534,0.01344199,89215.0,89207.0,0.01120988]
[1766718169945,0.01344199,89215.0,89205.0,0.01121013]
[1766718170415,0.000549,89205.0,89201.0,0.01128]
[1766718170633,0.000549,89205.0,89201.0,0.02249063]
[1766718170835,0.39824899,89211.0,89201.0,0.01128]
[1766718171047,0.26162975,89208.0,89191.0,0.82277944]
[1766718171269,0.26162975,89208.0,89180.0,0.39824899]
[1766718171270,0.01344199,89194.0,89190.0,0.05606006]
[1766718171491,0.25042,89203.0,89190.0,0.06734006]
[1766718171880,0.01344199,89195.0,89191.0,0.01121189]
[1766718172078,0.25052759,89203.0,89192.0,0.01121176]
[1766718172198,0.01344199,89196.0,89192.0,0.01121176]
[1766718172408,0.25052759,89203.0,89190.0,0.01128]
[1766718172409,0.26173797,89203.0,89190.0,0.01128]
[1766718172624,0.01344199,89196.0,89190.0,0.02249201]
[1766718172823,0.01344199,89196.0,89191.0,0.01121189]
[1766718173070,0.01344199,89196.0,89192.0,0.01121176]
[1766718173285,0.01344199,89196.0,89191.0,0.01121189]
[1766718173640,0.01344199,89196.0,89190.0,0.02249201]
[1766718173869,0.000549,89190.0,89182.0,0.01121302]
[1766718174078,0.000549,89190.0,89186.0,0.01121252]
[1766718174277,0.000549,89190.0,89183.0,0.01128]
[1766718174278,1e-08,89190.0,89183.0,0.82441]
[1766718174569,0.06949881,89196.0,89183.0,0.82441]
[1766718174570,0.01344199,89196.0,89183.0,0.83562289]
[1766718174763,0.01344199,89196.0,89186.0,0.01121252]
[1766718175568,0.01344199,89196.0,89183.0,0.83562289]
[1766718175768,0.00790987,89196.0,89185.0,0.01121264]
[1766718175963,0.00790987,89196.0,89184.0,0.82434277]
[1766718175964,0.00790987,89196.0,89186.0,0.81313]
[1766718176170,0.00790987,89196.0,89186.0,0.01121252]
[1766718176390,0.00790987,89196.0,89187.0,0.01121239]
[1766718176618,0.00790987,89196.0,89185.0,0.82434264]
[1766718177052,0.00790987,89196.0,89185.0,0.81313]
[1766718177278,0.00790987,89196.0,89186.0,0.06727513]
[1766718177578,0.00790987,89196.0,89186.0,0.82434252]
[1766718177982,0.00790987,89196.0,89189.0,0.81313]
[1766718178273,0.00790987,89196.0,89189.0,0.82434214]
[1766718178474,0.01128,89200.0,89189.0,0.82434214]
[1766718178679,0.02472199,89199.0,89196.0,0.000549]
[1766718179045,0.02472199,89199.0,89189.0,0.82434214]
[1766718179442,0.02472199,89199.0,89189.0,0.81313]
[1766718179849,0.02472199,89199.0,89189.0,0.82434214]
[1766718180044,0.01121101,89198.0,89189.0,0.81313]
[1766718180251,0.03593287,89199.0,89189.0,0.81313]
[1766718180460,0.000549,89189.0,89183.0,0.01128]
[1766718180670,0.01176114,89189.0,89183.0,0.01128]
[1766718180867,0.000549,89189.0,89184.0,0.81313]
[1766718181123,0.01121176,89192.0,89184.0,0.81313]
[1766718181269,0.01121189,89191.0,89184.0,0.81313]
[1766718181464,0.01121164,89193.0,89184.0,0.81313]
[1766718181655,0.01121189,89191.0,89184.0,0.81313]
[1766718181854,0.01121201,89190.0,89184.0,0.81313]
[1766718182170,0.01121201,89190.0,89175.0,0.0112139]
[1766718182171,0.0112139,89175.0,89152.0,0.01121679]
[1766718182525,0.01344199,89185.0,89152.0,0.81313]
[1766718182526,0.01121465,89169.0,89152.0,0.81313]
[1766718182706,0.01121503,89166.0,89152.0,0.81313]
[1766718182865,0.15109,89169.0,89155.0,0.01121642]
[1766718182866,0.01128,89165.0,89155.0,0.01121642]
[1766718183210,0.04366307,89215.0,89167.0,0.01121491]
[1766718183211,0.01344199,89215.0,89167.0,0.01121491]
[1766718183385,0.40985653,89190.0,89174.0,0.82434403]
[1766718183587,0.01121176,89192.0,89177.0,0.81313]
[1766718183588,0.01128,89184.0,89177.0,0.81313]
[1766718183758,0.01128,89184.0,89177.0,0.82434365]
[1766718184171,0.01128,89185.0,89184.0,0.00055]
[1766718184606,0.01128,89185.0,89177.0,0.81313]
[1766718184812,0.01128,89187.0,89180.0,0.01121327]
[1766718185031,0.01121013,89205.0,89187.0,0.01121239]
[1766718185334,0.03990452,89235.0,89187.0,0.01121239]
[1766718185335,0.01344199,89199.0,89190.0,0.81313]
[1766718185549,0.01344199,89199.0,89190.0,0.82434201]
[1766718186269,0.01344199,89199.0,89169.0,0.01121465]
[1766718186270,0.01121239,89187.0,89169.0,0.01121465]
[1766718186503,0.01121239,89187.0,89170.0,0.81313]
[1766718186504,0.01344199,89180.0,89170.0,0.81313]
[1766718187564,0.01344199,89180.0,89170.0,0.82434453]
[1766718187964,0.01344199,89180.0,89172.0,0.01121428]
[1766718188285,0.01344199,89180.0,89173.0,0.01121415]
[1766718188449,0.01344199,89180.0,89171.0,0.8243444]
[1766718188871,0.01128,89186.0,89172.0,0.01121428]
[1766718189078,0.01344199,89184.0,89180.0,0.00055]
[1766718189478,0.01344199,89184.0,89179.0,0.81313]
[1766718190056,0.01121315,89181.0,89169.0,0.81313]
[1766718190323,0.01121289,89183.0,89170.0,0.01121453]
[1766718190461,0.01121302,89182.0,89169.0,0.82434465]
[1766718190841,0.01121302,89182.0,89170.0,0.01121453]
[1766718191062,0.01121302,89182.0,89169.0,0.82434465]
[1766718191605,0.01344199,89184.0,89170.0,0.05607267]
[1766718191894,0.01121302,89182.0,89169.0,0.82434465]
[1766718192096,0.01121315,89181.0,89169.0,0.81313]
[1766718192532,0.01121365,89177.0,89169.0,0.81313]
[1766718192660,0.01121377,89176.0,89167.0,0.00010763]
[1766718192873,0.01344199,89169.0,89163.0,0.01121541]
[1766718193073,0.01354952,89169.0,89163.0,0.01121541]
[1766718193528,0.01354952,89169.0,89164.0,0.01121528]
[1766718193727,0.00010753,89169.0,89166.0,0.05607518]
[1766718193936,0.01128,89179.0,89169.0,0.71721]
[1766718194718,0.06734704,89179.0,89169.0,0.71721]
[1766718195040,0.01344199,89170.0,89169.0,0.71721]
[1766718195428,0.01344199,89170.0,89159.0,0.78450498]
[1766718195623,0.01344199,89170.0,89159.0,0.72853344]
[1766718195807,0.01344199,89170.0,89160.0,0.01121579]
[1766718196146,0.01344199,89170.0,89159.0,0.72853344]
[1766718196147,0.01121528,89164.0,89159.0,0.00010753]
[1766718196370,0.01121528,89164.0,89152.0,0.02249679]
[1766718196555,0.01132289,89164.0,89152.0,0.02249679]
[1766718196734,0.00010761,89164.0,89152.0,0.02249679]
[1766718197135,0.00010761,89164.0,89152.0,0.01128]
[1766718197315,0.00010761,89164.0,89151.0,0.71721]
[1766718197887,0.01132289,89164.0,89151.0,0.71721]
[1766718198087,0.01132289,89164.0,89149.0,0.01141717]
[1766718198088,0.01344199,89156.0,89149.0,0.0002]
[1766718198435,0.01121679,89152.0,89149.0,0.0002]
[1766718198637,0.01121654,89154.0,89149.0,0.0002]
[1766718199022,0.01121642,89155.0,89149.0,0.0002]
[1766718199222,0.01344199,89156.0,89149.0,0.0002]
[1766718199627,0.02465828,89156.0,89149.0,0.0002]
[1766718200069,0.01121642,89155.0,89149.0,0.0002]
[1766718200381,0.01344199,89156.0,89149.0,0.0002]
[1766718200754,0.01128,89157.0,89149.0,0.71741]
[1766718203085,0.01128,89157.0,89149.0,0.72862717]
[1766718203270,0.01128,89157.0,89149.0,0.71741]
[1766718203468,0.01344199,89156.0,89149.0,0.71741]
[1766718203734,0.02465828,89156.0,89149.0,0.0002]
[1766718203858,0.01121642,89155.0,89149.0,0.0002]
[1766718204476,0.01121654,89154.0,89149.0,0.0002]
[1766718204707,0.02465828,89156.0,89149.0,0.0002]
[1766718204885,0.056085,89151.0,89149.0,1e-08]
[1766718205513,0.01128,89150.0,89149.0,1e-08]
[1766718206703,0.01121805,89142.0,89123.0,0.01142044]
[1766718207029,0.01344199,89133.0,89123.0,0.0002]
[1766718207232,0.01344199,89133.0,89124.0,0.01122032]
[1766718207450,0.01344199,89133.0,89123.0,0.71741]
[1766718207654,0.01344199,89133.0,89124.0,0.01122032]
[1766718207795,0.01344199,89133.0,89124.0,0.72843032]
[1766718208017,0.01344199,89133.0,89125.0,0.01122019]
[1766718208212,0.01121843,89139.0,89125.0,0.01122019]
[1766718208213,0.01344199,89139.0,89127.0,0.71721]
[1766718208411,0.02472199,89142.0,89129.0,0.01121969]
[1766718208635,0.02472199,89142.0,89132.0,0.71721]
[1766718208881,0.02472199,89142.0,89132.0,0.72782817]
[1766718209292,0.02472199,89142.0,89132.0,0.71660886]
[1766718209486,0.02448274,89142.0,89131.0,0.7733072]
[1766718209622,0.02448274,89142.0,89133.0,0.71721]
[1766718209818,0.02448274,89142.0,89134.0,0.05609531]
[1766718210023,0.01128,89145.0,89138.0,0.01121855]
[1766718210220,0.01121692,89151.0,89138.0,0.01121855]
[1766718210221,0.01128,89151.0,89142.0,0.71721]
[1766718210552,0.01128,89151.0,89142.0,0.78451833]
[1766718210755,0.01128,89151.0,89145.0,0.71721]
[1766718212172,0.01128,89151.0,89145.0,0.7169094]
[1766718213272,0.02249642,89155.0,89145.0,0.7169094]
[1766718213698,0.01121654,89154.0,89145.0,0.7169094]
[1766718213902,0.02249642,89155.0,89145.0,0.7169094]
[1766718214130,0.01344199,89156.0,89145.0,0.7169094]
[1766718214309,0.01344199,89156.0,89148.0,0.7284273]
[1766718214515,0.01344199,89156.0,89149.0,0.72842717]
[1766718214718,0.01344199,89156.0,89149.0,0.71721]
[1766718215612,0.01344199,89156.0,89149.0,0.72842717]
[1766718216318,0.01073057,89156.0,89149.0,0.72842717]
[1766718216539,5.7e-07,89156.0,89150.0,0.71721]
[1766718216919,0.0112183,89140.0,89126.0,0.71721]
[1766718217123,0.01344199,89135.0,89126.0,0.71721]
[1766718217501,0.01344199,89135.0,89125.0,0.00035911]
[1766718217502,0.01121956,89130.0,89125.0,0.00035911]
[1766718217927,0.01121931,89132.0,89129.0,0.00030306]
[1766718218132,0.01121906,89134.0,89125.0,0.00035911]
[1766718218339,0.01121931,89132.0,89125.0,0.00035911]
[1766718218515,0.01121918,89133.0,89125.0,0.00035911]
[1766718218974,0.01344199,89135.0,89129.0,0.01121969]
[1766718219188,0.0224983,89140.0,89130.0,0.71721]
[1766718219372,0.01128,89140.0,89130.0,0.71721]
[1766718219772,0.01121843,89139.0,89130.0,0.71721]
[1766718220110,0.0224983,89140.0,89130.0,0.71721]
[1766718220317,0.01128,89140.0,89130.0,0.71721]
[1766718220723,0.01128,89140.0,89132.0,0.01121931]
[1766718220951,0.22432677,89156.0,89132.0,0.01121931]
[1766718220952,0.01128,89148.0,89134.0,0.72842906]
[1766718221154,0.0112173,89148.0,89135.0,0.71721]
[1766718221352,0.01344199,89142.0,89135.0,0.71721]
[1766718221555,0.01121818,89141.0,89129.0,0.01121969]
[1766718221795,0.02472199,89142.0,89134.0,0.01121906]
[1766718222056,1.99e-06,89140.0,89127.0,0.65943994]
[1766718222262,0.01121893,89135.0,89127.0,0.64822]
[1766718222425,0.01121843,89139.0,89127.0,0.64822]
[1766718222904,0.01121843,89139.0,89125.0,0.00035911]
[1766718222905,0.01128,89144.0,89135.0,0.64822]
[1766718223156,0.01344199,89142.0,89135.0,0.64822]
[1766718223382,0.02466004,89142.0,89135.0,0.64822]
[1766718223596,0.01121818,89141.0,89130.0,0.00027263]
[1766718223810,0.02466004,89142.0,89130.0,0.00027263]
[1766718224015,0.01344199,89142.0,89133.0,0.01121918]
[1766718224237,0.01344199,89142.0,89134.0,0.63921]
[1766718224861,0.01121818,89141.0,89134.0,0.63921]
[1766718225062,0.02466004,89142.0,89134.0,0.63921]
[1766718225264,0.0112183,89140.0,89134.0,0.63921]
[1766718225545,0.05609093,89141.0,89134.0,0.63921]
[1766718225546,0.01121818,89141.0,89134.0,0.63921]
[1766718226224,0.01121843,89139.0,89134.0,0.63921]
[1766718226577,0.01121843,89139.0,89130.0,0.00027263]
[1766718226932,0.06730984,89140.0,89130.0,0.00027263]
[1766718226933,0.0112183,89140.0,89130.0,0.00027263]
[1766718227125,0.01121855,89138.0,89130.0,0.00027263]
[1766718227465,0.01121906,89135.0,89130.0,0.00027263]
[1766718227667,0.01121906,89135.0,89124.0,0.63921]
[1766718227668,0.01121944,89131.0,89124.0,0.63792046]
[1766718227878,0.01122082,89120.0,89117.0,0.0002]
[1766718228124,0.05610274,89123.0,89117.0,0.0003075]
[1766718228326,0.08076264,89126.0,89117.0,0.0003075]
[1766718228528,0.01122019,89125.0,89117.0,0.0003075]
[1766718228742,0.01122032,89124.0,89117.0,0.0003075]
[1766718229314,0.01122019,89125.0,89117.0,0.0003075]
[1766718229520,0.01086504,89124.0,89117.0,0.0003075]
[1766718229939,0.01121906,89123.0,89117.0,0.0003075]
[1766718231345,0.01128,89135.0,89124.0,0.63921]
[1766718231508,0.01128,89135.0,89126.0,0.65043007]
[1766718231716,0.01128,89135.0,89128.0,0.01121981]
[1766718231917,0.01121793,89143.0,89131.0,0.01121944]
[1766718232119,0.01128,89141.0,89131.0,0.70652623]
[1766718232472,0.01128,89141.0,89133.0,0.01121918]
[1766718232769,0.02472199,89142.0,89134.0,0.01121906]
[1766718232932,0.02472199,89142.0,89133.0,0.65042918]
[1766718233269,0.02472199,89142.0,89136.0,0.01121881]
[1766718233477,0.02472199,89142.0,89135.0,0.01121893]
[1766718233679,0.02472199,89142.0,89136.0,0.01121881]
[1766718233838,0.06730282,89150.0,89138.0,0.65042855]
[1766718233839,0.01128,89147.0,89138.0,0.65042855]
[1766718234258,0.01128,89147.0,89138.0,0.63921]
[1766718234474,0.01128,89147.0,89139.0,0.01121843]
[1766718234840,0.01128,89147.0,89138.0,0.63921]
[1766718235106,0.01344199,89141.0,89133.0,0.01121918]
[1766718235238,0.01344199,89141.0,89134.0,0.01121906]
[1766718235576,0.01344199,89141.0,89133.0,0.01121918]
[1766718235781,0.01344199,89141.0,89133.0,0.06731477]
[1766718235984,0.01344199,89141.0,89132.0,0.05609619]
[1766718235985,0.01344199,89141.0,89132.0,0.65042931]
[1766718236185,0.01344199,89141.0,89133.0,0.01121918]
[1766718236410,0.01344199,89141.0,89132.0,0.63921]
[1766718237524,0.01344199,89141.0,89132.0,0.65042931]
[1766718238111,0.01344199,89141.0,89132.0,0.63921]
[1766718238522,0.01344199,89141.0,89133.0,0.01121918]
[1766718238977,0.01344199,89141.0,89132.0,0.65042931]
[1766718239726,0.01344199,89141.0,89133.0,0.01121918]
[1766718239956,0.01344199,89141.0,89132.0,0.63921]
[1766718240455,0.01344199,89141.0,89132.0,0.65042931]
[1766718240954,0.01344199,89141.0,89134.0,0.01121906]
[1766718241158,0.01128,89147.0,89135.0,0.06731325]
[1766718241302,0.01128,89147.0,89135.0,0.01121893]
[1766718241509,0.01344199,89142.0,89132.0,0.63921]
[1766718241746,0.02466004,89142.0,89132.0,0.63921]
[1766718241952,0.01344199,89142.0,89132.0,0.63921]
[1766718242325,0.01344199,89142.0,89134.0,0.01121906]
[1766718242517,0.01344199,89142.0,89133.0,0.01121918]
[1766718243455,0.01344199,89142.0,89131.0,0.01121944]
[1766718243803,0.01344199,89142.0,89127.0,0.05609941]
[1766718244114,0.01344199,89142.0,89090.0,0.01364199]
[1766718244115,0.01344199,89142.0,89100.0,0.01122334]
[1766718244116,0.0112212,89117.0,89100.0,0.01122334]
[1766718244280,0.01344199,89114.0,89103.0,0.01122296]
[1766718244456,0.01128,89113.0,89102.0,0.01122309]
[1766718244841,0.01128,89113.0,89100.0,0.01122334]
[1766718244842,0.01128,89113.0,89110.0,0.05611041]
[1766718245039,0.00010764,89117.0,89107.0,0.01122246]
[1766718245262,0.00010764,89117.0,89103.0,0.01128]
[1766718245263,0.01122158,89114.0,89103.0,0.01128]
[1766718245467,0.05610898,89113.0,89103.0,0.01128]